[Event "Early-Titled-Tuesday-Blitz-May-07-2024"]
[Site "Chess.com"]
[Date "2024.05.07"]
[Round "4"]
[White "Hikaru"]
[Black "Genghis_K"]
[Result "1-0"]
[WhiteElo "3237"]
[BlackElo "2912"]
[TimeControl "180+1"]
[EndTime "8:43:07 PDT"]
[Termination "Hikaru won on time"]

1. b3 {[%clk 0:03:00.4]} 1... e5 {[%clk 0:02:51.6]} 2. Bb2 {[%clk 0:03:00.1]}
2... Nc6 {[%clk 0:02:51.1]} 3. e3 {[%clk 0:03:00.1]} 3... Nf6 {[%clk 0:02:48.5]}
4. Bb5 {[%clk 0:02:59.6]} 4... e4 {[%clk 0:02:49.2]} 5. d4 {[%clk 0:02:52.6]}
5... exd3 {[%clk 0:02:35.1]} 6. cxd3 {[%clk 0:02:47.4]} 6... a6 {[%clk
0:02:33.1]} 7. Bxc6 {[%clk 0:02:46.6]} 7... dxc6 {[%clk 0:02:33.5]} 8. Nf3
{[%clk 0:02:45.4]} 8... Bd6 {[%clk 0:02:32.8]} 9. O-O {[%clk 0:02:43.6]} 9...
O-O {[%clk 0:02:33]} 10. h3 {[%clk 0:02:43.9]} 10... Qe7 {[%clk 0:02:28.8]} 11.
Nbd2 {[%clk 0:02:41.1]} 11... Rd8 {[%clk 0:02:28.7]} 12. Nc4 {[%clk 0:02:35.1]}
12... Bf5 {[%clk 0:02:22.5]} 13. e4 {[%clk 0:02:00.5]} 13... Bxe4 {[%clk
0:02:13.4]} 14. dxe4 {[%clk 0:01:46.2]} 14... Bh2+ {[%clk 0:02:05.9]} 15. Kxh2
{[%clk 0:01:45.8]} 15... Rxd1 {[%clk 0:02:05.8]} 16. Raxd1 {[%clk 0:01:46.7]}
16... Nxe4 {[%clk 0:02:05.9]} 17. Rfe1 {[%clk 0:01:46.6]} 17... f5 {[%clk
0:02:04.3]} 18. Nfd2 {[%clk 0:01:38.1]} 18... b5 {[%clk 0:01:57.7]} 19. Nxe4
{[%clk 0:01:15.2]} 19... fxe4 {[%clk 0:01:42.1]} 20. Ne5 {[%clk 0:01:15.2]}
20... Rf8 {[%clk 0:01:41.5]} 21. Rd7 {[%clk 0:00:58.7]} 21... Qe6 {[%clk
0:01:36.7]} 22. Kg1 {[%clk 0:00:53.7]} 22... Qf5 {[%clk 0:01:33.6]} 23. Rd2
{[%clk 0:00:43.1]} 23... c5 {[%clk 0:01:15.1]} 24. Ng4 {[%clk 0:00:41.1]} 24...
h5 {[%clk 0:01:09.2]} 25. Ne3 {[%clk 0:00:41.4]} 25... Qe6 {[%clk 0:01:07.3]}
26. Rc1 {[%clk 0:00:40.1]} 26... c4 {[%clk 0:01:02.6]} 27. bxc4 {[%clk
0:00:39.8]} 27... b4 {[%clk 0:01:03.3]} 28. Rcd1 {[%clk 0:00:33.9]} 28... a5
{[%clk 0:01:01.5]} 29. Rd5 {[%clk 0:00:31]} 29... a4 {[%clk 0:01:01.4]} 30. Rxh5
{[%clk 0:00:31.1]} 30... a3 {[%clk 0:00:53]} 31. Ba1 {[%clk 0:00:31]} 31... Qf7
{[%clk 0:00:38.6]} 32. Rf5 {[%clk 0:00:29.9]} 32... Qg6 {[%clk 0:00:26.9]} 33.
Rb5 {[%clk 0:00:27.6]} 33... Qf7 {[%clk 0:00:20.2]} 34. Rd2 {[%clk 0:00:26.3]}
34... c5 {[%clk 0:00:18.6]} 35. Rxc5 {[%clk 0:00:25.9]} 35... Qe7 {[%clk
0:00:16.7]} 36. Rcd5 {[%clk 0:00:25.5]} 36... Rf7 {[%clk 0:00:14.8]} 37. c5
{[%clk 0:00:25.7]} 37... Qb7 {[%clk 0:00:13.5]} 38. Kh2 {[%clk 0:00:19]} 38...
b3 {[%clk 0:00:13]} 39. axb3 {[%clk 0:00:19.9]} 39... Qxb3 {[%clk 0:00:13.4]}
40. c6 {[%clk 0:00:20.6]} 40... Qb6 {[%clk 0:00:12.8]} 41. Rc2 {[%clk
0:00:19.7]} 41... Rc7 {[%clk 0:00:09]} 42. Rdc5 {[%clk 0:00:17.1]} 42... Qb1
{[%clk 0:00:09.4]} 43. Be5 {[%clk 0:00:17.1]} 43... Rc8 {[%clk 0:00:06.7]} 44.
c7 {[%clk 0:00:17.7]} 44... a2 {[%clk 0:00:06.6]} 45. Rd2 {[%clk 0:00:16.2]}
45... Kh7 {[%clk 0:00:03.6]} 46. Rd8 {[%clk 0:00:15.8]} 46... a1=Q {[%clk
0:00:03.3]} 47. Bxa1 {[%clk 0:00:15.8]} 47... Rxc7 {[%clk 0:00:01.4]} 48. Rxc7
{[%clk 0:00:14.4]} 48... Qxa1 {[%clk 0:00:02.3]} 49. Rd5 {[%clk 0:00:13.1]}
49... Qf6 {[%clk 0:00:02.5]} 50. Rc2 {[%clk 0:00:12.6]} 50... Qf4+ {[%clk
0:00:02.8]} 51. g3 {[%clk 0:00:13.1]} 51... Qf3 {[%clk 0:00:03]} 52. Rf5 {[%clk
0:00:12.8]} 1-0

[Event "Early-Titled-Tuesday-Blitz-May-07-2024"]
[Site "Chess.com"]
[Date "2024.05.07"]
[Round "4"]
[White "Iskusnyh"]
[Black "AccioChess"]
[Result "0-1"]
[WhiteElo "2610"]
[BlackElo "2451"]
[TimeControl "180+1"]
[EndTime "8:43:09 PDT"]
[Termination "AccioChess won by resignation"]

1. d4 {[%clk 0:03:00.9]} 1... Nf6 {[%clk 0:02:59.3]} 2. c4 {[%clk 0:02:59.9]}
2... g6 {[%clk 0:02:59.6]} 3. g3 {[%clk 0:02:59.1]} 3... Bg7 {[%clk 0:02:58.2]}
4. Bg2 {[%clk 0:02:57.3]} 4... O-O {[%clk 0:02:58.4]} 5. Nc3 {[%clk 0:02:55.3]}
5... c5 {[%clk 0:02:58.1]} 6. dxc5 {[%clk 0:02:49.6]} 6... Na6 {[%clk
0:02:55.7]} 7. Nf3 {[%clk 0:02:48.3]} 7... Nxc5 {[%clk 0:02:55.7]} 8. O-O {[%clk
0:02:48.2]} 8... d6 {[%clk 0:02:56.2]} 9. Bf4 {[%clk 0:02:32.2]} 9... Bd7 {[%clk
0:02:48.5]} 10. Rc1 {[%clk 0:02:30.1]} 10... Rc8 {[%clk 0:02:32.9]} 11. b3
{[%clk 0:02:23.3]} 11... Bc6 {[%clk 0:02:28.8]} 12. Bh3 {[%clk 0:02:13.1]} 12...
Bd7 {[%clk 0:02:14.9]} 13. Bg2 {[%clk 0:02:12.7]} 13... a5 {[%clk 0:01:56.4]}
14. Ne1 {[%clk 0:01:54.3]} 14... Bc6 {[%clk 0:01:51.6]} 15. Bh3 {[%clk
0:01:46.6]} 15... Ra8 {[%clk 0:01:51.4]} 16. Nd3 {[%clk 0:01:45.1]} 16... Nce4
{[%clk 0:01:46.3]} 17. Nxe4 {[%clk 0:01:37.4]} 17... Nxe4 {[%clk 0:01:47.2]} 18.
f3 {[%clk 0:01:36.4]} 18... Nc5 {[%clk 0:01:20.6]} 19. e4 {[%clk 0:00:56.7]}
19... Nxd3 {[%clk 0:01:18]} 20. Qxd3 {[%clk 0:00:56.3]} 20... a4 {[%clk
0:01:18.5]} 21. b4 {[%clk 0:00:55.8]} 21... Qb6+ {[%clk 0:01:17.8]} 22. Be3
{[%clk 0:00:54.8]} 22... Qxb4 {[%clk 0:01:18]} 23. c5 {[%clk 0:00:52.3]} 23...
a3 {[%clk 0:01:04.1]} 24. cxd6 {[%clk 0:00:35.7]} 24... Qxd6 {[%clk 0:01:05]}
25. Qxd6 {[%clk 0:00:35.6]} 25... exd6 {[%clk 0:01:05.9]} 26. Rfd1 {[%clk
0:00:35.7]} 26... Bb2 {[%clk 0:00:52.5]} 27. Rb1 {[%clk 0:00:31.3]} 27... Bb5
{[%clk 0:00:38.7]} 28. Bf1 {[%clk 0:00:29]} 28... Bxf1 {[%clk 0:00:35]} 29. Kxf1
{[%clk 0:00:29.9]} 29... Rfc8 {[%clk 0:00:28.7]} 30. Rxd6 {[%clk 0:00:29.1]}
30... Rc2 {[%clk 0:00:28.7]} 31. Rd2 {[%clk 0:00:28.9]} 31... Rac8 {[%clk
0:00:28.4]} 32. Rbd1 {[%clk 0:00:27.2]} 32... Kg7 {[%clk 0:00:26.4]} 33. Ke2
{[%clk 0:00:25.6]} 33... h5 {[%clk 0:00:15.4]} 34. Rxc2 {[%clk 0:00:23.1]} 34...
Rxc2+ {[%clk 0:00:14.9]} 35. Rd2 {[%clk 0:00:24]} 35... Rc1 {[%clk 0:00:14.1]}
36. Kd3 {[%clk 0:00:17.1]} 36... Ra1 {[%clk 0:00:13.6]} 37. Bd4+ {[%clk
0:00:14.9]} 37... Bxd4 {[%clk 0:00:11.9]} 38. Kxd4 {[%clk 0:00:15.2]} 38... Rb1
{[%clk 0:00:11.7]} 39. h4 {[%clk 0:00:12.5]} 39... b5 {[%clk 0:00:11.5]} 40. f4
{[%clk 0:00:12.1]} 40... b4 {[%clk 0:00:10.8]} 41. Kc4 {[%clk 0:00:11.6]} 41...
Rb2 {[%clk 0:00:10.1]} 42. Kd3 {[%clk 0:00:11.6]} 42... b3 {[%clk 0:00:07.3]}
43. Rd1 {[%clk 0:00:04.4]} 43... Rxa2 {[%clk 0:00:05.9]} 44. Rb1 {[%clk
0:00:03.9]} 44... b2 {[%clk 0:00:06]} 45. Kc2 {[%clk 0:00:03.6]} 45... Ra1
{[%clk 0:00:06.3]} 46. e5 {[%clk 0:00:03.8]} 46... Rxb1 {[%clk 0:00:06.7]} 47.
Kxb1 {[%clk 0:00:03.9]} 47... Kf8 {[%clk 0:00:05.6]} 48. Ka2 {[%clk 0:00:04.8]}
48... Ke7 {[%clk 0:00:05.8]} 49. Kb1 {[%clk 0:00:05.4]} 49... Ke6 {[%clk
0:00:06.3]} 50. Ka2 {[%clk 0:00:05.4]} 50... Kf5 {[%clk 0:00:06.8]} 0-1

[Event "Early-Titled-Tuesday-Blitz-May-07-2024"]
[Site "Chess.com"]
[Date "2024.05.07"]
[Round "4"]
[White "MarijaKuznecova"]
[Black "Kazmin_Semyon"]
[Result "0-1"]
[WhiteElo "2418"]
[BlackElo "2591"]
[TimeControl "180+1"]
[EndTime "8:43:10 PDT"]
[Termination "Kazmin_Semyon won by checkmate"]

1. e4 {[%clk 0:03:00.9]} 1... e5 {[%clk 0:02:58.1]} 2. Nf3 {[%clk 0:03:01.1]}
2... Nc6 {[%clk 0:02:58.6]} 3. d4 {[%clk 0:03:01.6]} 3... exd4 {[%clk
0:02:58.3]} 4. Nxd4 {[%clk 0:03:02.5]} 4... Bc5 {[%clk 0:02:59]} 5. Nb3 {[%clk
0:03:01.9]} 5... Bb6 {[%clk 0:02:58.6]} 6. Nc3 {[%clk 0:03:02.4]} 6... Nf6
{[%clk 0:02:58.1]} 7. Qe2 {[%clk 0:03:03]} 7... O-O {[%clk 0:02:56.1]} 8. Bg5
{[%clk 0:03:02.9]} 8... h6 {[%clk 0:02:56.3]} 9. Bh4 {[%clk 0:03:02.8]} 9... Re8
{[%clk 0:02:48.9]} 10. O-O-O {[%clk 0:03:02]} 10... a5 {[%clk 0:02:47.3]} 11. a4
{[%clk 0:03:00.7]} 11... d6 {[%clk 0:02:46.6]} 12. f3 {[%clk 0:02:58.4]} 12...
Be6 {[%clk 0:02:44.5]} 13. g4 {[%clk 0:02:58.4]} 13... Bxb3 {[%clk 0:02:42.7]}
14. cxb3 {[%clk 0:02:59.3]} 14... Bd4 {[%clk 0:02:29.6]} 15. Qc4 {[%clk
0:02:53.7]} 15... Be5 {[%clk 0:02:24.3]} 16. Nd5 {[%clk 0:02:49.8]} 16... g5
{[%clk 0:02:16.9]} 17. Bf2 {[%clk 0:02:48.5]} 17... Nxd5 {[%clk 0:02:14.7]} 18.
exd5 {[%clk 0:02:49]} 18... Nb4 {[%clk 0:02:15.3]} 19. h4 {[%clk 0:02:44.2]}
19... Qf6 {[%clk 0:02:11.7]} 20. hxg5 {[%clk 0:02:39.2]} 20... hxg5 {[%clk
0:02:12.6]} 21. Bd3 {[%clk 0:02:18.5]} 21... Bxb2+ {[%clk 0:01:58.4]} 22. Kb1
{[%clk 0:02:18.5]} 22... c5 {[%clk 0:01:52.1]} 23. dxc6 {[%clk 0:02:09.2]} 23...
bxc6 {[%clk 0:01:45.5]} 24. Bg3 {[%clk 0:01:59.2]} 24... Be5 {[%clk 0:01:07.8]}
25. Bh7+ {[%clk 0:01:53.5]} 25... Kf8 {[%clk 0:01:05.5]} 26. Be1 {[%clk
0:01:39.7]} 26... Rab8 {[%clk 0:00:58.5]} 27. Bf5 {[%clk 0:01:33.1]} 27... Nd5
{[%clk 0:00:42.4]} 28. Bd2 {[%clk 0:01:16.9]} 28... Bc3 {[%clk 0:00:30.4]} 29.
Bc1 {[%clk 0:01:03.3]} 29... Ne3 {[%clk 0:00:07.6]} 30. Bxe3 {[%clk 0:00:56.8]}
30... Rxe3 {[%clk 0:00:08.5]} 31. Rh7 {[%clk 0:00:46.8]} 31... Rb4 {[%clk
0:00:04.6]} 32. Qxc6 {[%clk 0:00:37.2]} 32... Rxb3+ {[%clk 0:00:04.5]} 33. Kc2
{[%clk 0:00:37.4]} 33... Rb2+ {[%clk 0:00:03.5]} 34. Kc1 {[%clk 0:00:37.1]}
34... Rb8 {[%clk 0:00:02.9]} 35. Qxd6+ {[%clk 0:00:29.3]} 35... Qxd6 {[%clk
0:00:02.9]} 36. Rxd6 {[%clk 0:00:30.1]} 36... Bb2+ {[%clk 0:00:02.4]} 37. Kd2
{[%clk 0:00:27.7]} 37... Re7 {[%clk 0:00:01.9]} 38. Be4 {[%clk 0:00:20.5]} 38...
Be5 {[%clk 0:00:02.2]} 39. Rd5 {[%clk 0:00:17.6]} 39... Bf4+ {[%clk 0:00:02.4]}
40. Kd3 {[%clk 0:00:17.2]} 40... Rb3+ {[%clk 0:00:01.9]} 41. Kc2 {[%clk
0:00:17.5]} 41... Reb7 {[%clk 0:00:02.1]} 42. Rd8+ {[%clk 0:00:13.2]} 42... Ke7
{[%clk 0:00:02.8]} 43. Rdh8 {[%clk 0:00:11]} 43... Rb2+ {[%clk 0:00:02.7]} 44.
Kd3 {[%clk 0:00:09.8]} 44... R7b3+ {[%clk 0:00:03.3]} 45. Kc4 {[%clk 0:00:10.5]}
45... Rb4+ {[%clk 0:00:03.9]} 46. Kc5 {[%clk 0:00:11.1]} 46... Be3+ {[%clk
0:00:03.6]} 47. Kd5 {[%clk 0:00:10.6]} 47... Rd4+ {[%clk 0:00:03.4]} 48. Kc6
{[%clk 0:00:11]} 48... Rc4+ {[%clk 0:00:03.1]} 49. Kd5 {[%clk 0:00:11.3]} 49...
Rc5# {[%clk 0:00:03.7]} 0-1

[Event "Early-Titled-Tuesday-Blitz-May-07-2024"]
[Site "Chess.com"]
[Date "2024.05.07"]
[Round "4"]
[White "IwkooO"]
[Black "SaiAgni_98"]
[Result "1-0"]
[WhiteElo "2699"]
[BlackElo "2491"]
[TimeControl "180+1"]
[EndTime "8:43:12 PDT"]
[Termination "IwkooO won by resignation"]

1. e4 {[%clk 0:03:00.9]} 1... d6 {[%clk 0:02:59.9]} 2. d4 {[%clk 0:03:01]} 2...
Nf6 {[%clk 0:02:59.9]} 3. Nc3 {[%clk 0:03:01.3]} 3... Nbd7 {[%clk 0:03:00.3]} 4.
f3 {[%clk 0:02:59.5]} 4... e5 {[%clk 0:03:00.5]} 5. Be3 {[%clk 0:03:00]} 5...
Be7 {[%clk 0:02:59.7]} 6. Nge2 {[%clk 0:03:00.3]} 6... c6 {[%clk 0:02:59.7]} 7.
Qd2 {[%clk 0:03:00.6]} 7... O-O {[%clk 0:02:55.8]} 8. g4 {[%clk 0:03:01.2]} 8...
b5 {[%clk 0:02:53.4]} 9. Ng3 {[%clk 0:03:01.2]} 9... exd4 {[%clk 0:02:42.1]} 10.
Bxd4 {[%clk 0:03:01]} 10... Ne5 {[%clk 0:02:33]} 11. Be2 {[%clk 0:02:55]} 11...
b4 {[%clk 0:02:32.4]} 12. Nd1 {[%clk 0:02:55.3]} 12... c5 {[%clk 0:02:13.8]} 13.
Be3 {[%clk 0:02:30.5]} 13... Ba6 {[%clk 0:02:13.6]} 14. g5 {[%clk 0:02:29.8]}
14... Nfd7 {[%clk 0:02:03]} 15. f4 {[%clk 0:02:29.7]} 15... Nc4 {[%clk 0:01:49]}
16. Bxc4 {[%clk 0:02:25.5]} 16... Bxc4 {[%clk 0:01:49.9]} 17. Bf2 {[%clk
0:02:22.5]} 17... f6 {[%clk 0:01:42.3]} 18. Ne3 {[%clk 0:02:19.5]} 18... Bf7
{[%clk 0:01:41.8]} 19. h4 {[%clk 0:02:18.2]} 19... Nb6 {[%clk 0:01:39.1]} 20.
Ngf5 {[%clk 0:02:16.8]} 20... Re8 {[%clk 0:01:28.9]} 21. Rg1 {[%clk 0:02:05.5]}
21... fxg5 {[%clk 0:01:24.3]} 22. hxg5 {[%clk 0:02:02.7]} 22... Bf8 {[%clk
0:01:19.8]} 23. Qd3 {[%clk 0:01:58.5]} 23... g6 {[%clk 0:01:13.5]} 24. Nh6+
{[%clk 0:01:48.6]} 24... Bxh6 {[%clk 0:01:13.5]} 25. gxh6 {[%clk 0:01:49.5]}
25... Qe7 {[%clk 0:01:12.5]} 26. O-O-O {[%clk 0:01:47.6]} 26... Qxe4 {[%clk
0:01:09.8]} 27. Ng4 {[%clk 0:01:47.7]} 27... Qxd3 {[%clk 0:01:04.8]} 28. Nf6+
{[%clk 0:01:47.3]} 28... Kh8 {[%clk 0:01:03.1]} 29. Rxd3 {[%clk 0:01:47.2]}
29... Re2 {[%clk 0:00:56.9]} 30. Rf1 {[%clk 0:01:35.6]} 30... Nc4 {[%clk
0:00:44.4]} 31. b3 {[%clk 0:01:25.5]} 31... Na3 {[%clk 0:00:44.3]} 32. Rd2
{[%clk 0:01:26.2]} 32... Rxd2 {[%clk 0:00:38.5]} 33. Kxd2 {[%clk 0:01:27.1]}
33... Be6 {[%clk 0:00:32.7]} 34. Re1 {[%clk 0:01:27.6]} 34... Bf5 {[%clk
0:00:32.9]} 35. Re7 {[%clk 0:01:27.1]} 35... g5 {[%clk 0:00:32.6]} 36. fxg5
{[%clk 0:01:09.8]} 36... Bxc2 {[%clk 0:00:32.7]} 37. Bg3 {[%clk 0:01:01.2]}
37... Rd8 {[%clk 0:00:27.7]} 38. Rxa7 {[%clk 0:00:52.9]} 38... Bg6 {[%clk
0:00:26.1]} 39. Re7 {[%clk 0:00:33]} 39... Nb1+ {[%clk 0:00:24.2]} 40. Kc1
{[%clk 0:00:33]} 40... Nc3 {[%clk 0:00:25.1]} 41. Kb2 {[%clk 0:00:33]} 41...
Nd1+ {[%clk 0:00:24.2]} 42. Ka1 {[%clk 0:00:27.7]} 42... Nc3 {[%clk 0:00:25.1]}
43. Be1 {[%clk 0:00:26.7]} 43... Ra8 {[%clk 0:00:20.3]} 44. a4 {[%clk 0:00:24]}
44... Nb5 {[%clk 0:00:12.3]} 45. Bf2 {[%clk 0:00:19.3]} 45... Nc3 {[%clk
0:00:10.1]} 46. Bg3 {[%clk 0:00:17.1]} 46... Rd8 {[%clk 0:00:10.3]} 47. Rd7
{[%clk 0:00:14.3]} 47... Rxd7 {[%clk 0:00:10.1]} 48. Nxd7 {[%clk 0:00:15.2]}
48... Ne4 {[%clk 0:00:10.3]} 49. Bf4 {[%clk 0:00:15.8]} 49... Kg8 {[%clk
0:00:10.8]} 50. a5 {[%clk 0:00:16]} 50... Nc3 {[%clk 0:00:09]} 51. a6 {[%clk
0:00:14.7]} 51... Nb5 {[%clk 0:00:08.6]} 52. Bxd6 {[%clk 0:00:14.6]} 52... Nxd6
{[%clk 0:00:07.8]} 53. a7 {[%clk 0:00:15.1]} 53... Be4 {[%clk 0:00:08.4]} 54.
Nf6+ {[%clk 0:00:15.9]} 54... Kf7 {[%clk 0:00:08.9]} 55. Nxe4 {[%clk 0:00:16.7]}
55... Nxe4 {[%clk 0:00:08.8]} 56. a8=Q {[%clk 0:00:17]} 56... Kg6 {[%clk
0:00:09.4]} 57. Qxe4+ {[%clk 0:00:16]} 1-0

[Event "Early-Titled-Tuesday-Blitz-May-07-2024"]
[Site "Chess.com"]
[Date "2024.05.07"]
[Round "4"]
[White "FaustinoOro"]
[Black "viditchess"]
[Result "0-1"]
[WhiteElo "2887"]
[BlackElo "3122"]
[TimeControl "180+1"]
[EndTime "8:43:13 PDT"]
[Termination "viditchess won by resignation"]

1. e4 {[%clk 0:03:00.9]} 1... c5 {[%clk 0:02:59.7]} 2. Nf3 {[%clk 0:03:00.7]}
2... d6 {[%clk 0:02:59.7]} 3. c3 {[%clk 0:02:59.8]} 3... Nf6 {[%clk 0:02:59.5]}
4. h3 {[%clk 0:03:00.1]} 4... g6 {[%clk 0:02:57]} 5. Bd3 {[%clk 0:03:00.1]} 5...
Bg7 {[%clk 0:02:55.7]} 6. O-O {[%clk 0:03:00.2]} 6... O-O {[%clk 0:02:55.6]} 7.
Bc2 {[%clk 0:03:00.8]} 7... e5 {[%clk 0:02:44.5]} 8. d4 {[%clk 0:03:00.8]} 8...
Nc6 {[%clk 0:02:43.9]} 9. dxc5 {[%clk 0:02:53.3]} 9... dxc5 {[%clk 0:02:43.9]}
10. Qe2 {[%clk 0:02:53.7]} 10... Nh5 {[%clk 0:02:41.2]} 11. Rd1 {[%clk
0:02:49.6]} 11... Qc7 {[%clk 0:02:39.7]} 12. Na3 {[%clk 0:02:47.2]} 12... a6
{[%clk 0:02:38.1]} 13. Nc4 {[%clk 0:02:46]} 13... b5 {[%clk 0:02:37.4]} 14. Ne3
{[%clk 0:02:45.6]} 14... Nf4 {[%clk 0:02:37.7]} 15. Qe1 {[%clk 0:02:44.8]} 15...
Ne7 {[%clk 0:02:30]} 16. h4 {[%clk 0:02:08.4]} 16... c4 {[%clk 0:01:59.9]} 17.
g3 {[%clk 0:01:57.1]} 17... Nd3 {[%clk 0:01:59.6]} 18. Qe2 {[%clk 0:01:20.6]}
18... Bb7 {[%clk 0:01:53.9]} 19. Bxd3 {[%clk 0:01:03.2]} 19... cxd3 {[%clk
0:01:54.8]} 20. Qxd3 {[%clk 0:01:04.1]} 20... Rad8 {[%clk 0:01:54.3]} 21. Qc2
{[%clk 0:01:03.9]} 21... Rxd1+ {[%clk 0:01:53.8]} 22. Nxd1 {[%clk 0:01:04.8]}
22... f5 {[%clk 0:01:50.1]} 23. Ng5 {[%clk 0:00:53.9]} 23... Qd7 {[%clk
0:01:35]} 24. Qb3+ {[%clk 0:00:52.3]} 24... Kh8 {[%clk 0:01:34.9]} 25. Ne6
{[%clk 0:00:43.7]} 25... Rc8 {[%clk 0:01:27.6]} 26. Nxg7 {[%clk 0:00:27.5]}
26... Kxg7 {[%clk 0:01:28.5]} 27. Bg5 {[%clk 0:00:27.8]} 27... Bxe4 {[%clk
0:01:26.2]} 28. Ne3 {[%clk 0:00:28.1]} 28... Bf3 {[%clk 0:01:22.6]} 29. c4
{[%clk 0:00:26.7]} 29... Nc6 {[%clk 0:00:49.4]} 30. Nd5 {[%clk 0:00:10.1]} 30...
Nd4 {[%clk 0:00:49.7]} 31. Qe3 {[%clk 0:00:10.2]} 31... Be4 {[%clk 0:00:18.9]}
32. Bf6+ {[%clk 0:00:09.7]} 32... Kf7 {[%clk 0:00:18.3]} 33. Qh6 {[%clk
0:00:06.2]} 33... Ke6 {[%clk 0:00:08.8]} 34. Nb6 {[%clk 0:00:02.2]} 34... Nf3+
{[%clk 0:00:06.6]} 35. Kg2 {[%clk 0:00:02]} 35... Qd3 {[%clk 0:00:02.8]} 36. Qg7
{[%clk 0:00:01.5]} 36... Re8 {[%clk 0:00:01.4]} 37. Nd5 {[%clk 0:00:01.2]} 37...
Bxd5 {[%clk 0:00:01.3]} 38. cxd5+ {[%clk 0:00:02.1]} 38... Qxd5 {[%clk
0:00:01.9]} 39. Kh3 {[%clk 0:00:03]} 39... Qd4 {[%clk 0:00:02]} 40. Rc1 {[%clk
0:00:02.9]} 40... Qg4+ {[%clk 0:00:02.1]} 41. Kg2 {[%clk 0:00:03]} 41... Nd4
{[%clk 0:00:02.9]} 42. Rc7 {[%clk 0:00:02]} 42... Qe4+ {[%clk 0:00:03.1]} 43.
Kf1 {[%clk 0:00:01.4]} 43... f4 {[%clk 0:00:03.7]} 44. Re7+ {[%clk 0:00:01.1]}
44... Rxe7 {[%clk 0:00:03.2]} 45. Qxe7+ {[%clk 0:00:02]} 45... Kf5 {[%clk
0:00:03.8]} 46. Kg1 {[%clk 0:00:01.9]} 46... fxg3 {[%clk 0:00:03.7]} 47. fxg3
{[%clk 0:00:02.8]} 47... Kg4 {[%clk 0:00:04.2]} 48. Bxe5 {[%clk 0:00:02.7]}
48... Nf3+ {[%clk 0:00:04.1]} 49. Kf2 {[%clk 0:00:03.1]} 49... Nxe5 {[%clk
0:00:05]} 50. Qg5+ {[%clk 0:00:03.5]} 50... Kh3 {[%clk 0:00:04.9]} 0-1

[Event "Early-Titled-Tuesday-Blitz-May-07-2024"]
[Site "Chess.com"]
[Date "2024.05.07"]
[Round "4"]
[White "ErikRonka"]
[Black "FMOlexandrProhorov"]
[Result "1-0"]
[WhiteElo "2503"]
[BlackElo "2288"]
[TimeControl "180+1"]
[EndTime "8:43:13 PDT"]
[Termination "ErikRonka won on time"]

1. e4 {[%clk 0:03:00.9]} 1... c5 {[%clk 0:02:55]} 2. Nf3 {[%clk 0:03:00.9]} 2...
e6 {[%clk 0:02:53.2]} 3. d4 {[%clk 0:03:01]} 3... cxd4 {[%clk 0:02:53.5]} 4.
Nxd4 {[%clk 0:03:01.8]} 4... Qb6 {[%clk 0:02:53.6]} 5. Be3 {[%clk 0:02:59.8]}
5... Bc5 {[%clk 0:02:45]} 6. Na3 {[%clk 0:02:57.9]} 6... Bxa3 {[%clk 0:02:26.3]}
7. bxa3 {[%clk 0:02:56.9]} 7... Qa5+ {[%clk 0:02:26.2]} 8. Bd2 {[%clk
0:02:51.4]} 8... Qxa3 {[%clk 0:02:14.4]} 9. Nb5 {[%clk 0:02:48]} 9... Qc5 {[%clk
0:02:14.4]} 10. Be3 {[%clk 0:02:38.8]} 10... Qc6 {[%clk 0:02:00.8]} 11. Nd6+
{[%clk 0:02:26.7]} 11... Ke7 {[%clk 0:01:59.8]} 12. e5 {[%clk 0:02:13.8]} 12...
f6 {[%clk 0:01:52.3]} 13. Nxc8+ {[%clk 0:01:22.3]} 13... Qxc8 {[%clk 0:01:51.4]}
14. Qd6+ {[%clk 0:01:22.7]} 14... Kf7 {[%clk 0:01:50.9]} 15. O-O-O {[%clk
0:01:20.6]} 15... Qc6 {[%clk 0:01:38.9]} 16. Qd4 {[%clk 0:01:05.9]} 16... Ne7
{[%clk 0:01:27.5]} 17. exf6 {[%clk 0:01:03.7]} 17... gxf6 {[%clk 0:01:28.4]} 18.
Bc4 {[%clk 0:00:57.1]} 18... d5 {[%clk 0:01:22.2]} 19. Bd3 {[%clk 0:00:54.9]}
19... Nd7 {[%clk 0:01:16.4]} 20. Be2 {[%clk 0:00:44.2]} 20... Rac8 {[%clk
0:01:09.9]} 21. Bh5+ {[%clk 0:00:42.7]} 21... Ng6 {[%clk 0:01:10]} 22. Rd2
{[%clk 0:00:42.3]} 22... Ne5 {[%clk 0:01:04.7]} 23. f4 {[%clk 0:00:23]} 23...
Nc4 {[%clk 0:01:02.8]} 24. Rhd1 {[%clk 0:00:18.8]} 24... Nxe3 {[%clk 0:00:20.1]}
25. Qxe3 {[%clk 0:00:18.5]} 25... Qa4 {[%clk 0:00:11.7]} 26. f5 {[%clk
0:00:14.5]} 26... exf5 {[%clk 0:00:08.3]} 27. Qb3 {[%clk 0:00:06.7]} 27... Qxb3
{[%clk 0:00:03.3]} 28. axb3 {[%clk 0:00:07.6]} 28... Rhd8 {[%clk 0:00:02.2]} 29.
Rxd5 {[%clk 0:00:07.9]} 29... Rxd5 {[%clk 0:00:02]} 30. Rxd5 {[%clk 0:00:08.8]}
30... Ke6 {[%clk 0:00:02.8]} 31. Rb5 {[%clk 0:00:07.8]} 31... b6 {[%clk
0:00:02.6]} 32. Be2 {[%clk 0:00:06.8]} 32... Nf4 {[%clk 0:00:00.4]} 33. Bf3
{[%clk 0:00:06.6]} 33... Ke7 {[%clk 0:00:01.3]} 34. Rb4 {[%clk 0:00:06.5]} 34...
Ne6 {[%clk 0:00:00.4]} 35. Rh4 {[%clk 0:00:06]} 35... Nc5 {[%clk 0:00:00.9]} 36.
Ra4 {[%clk 0:00:06.6]} 36... Ke6 {[%clk 0:00:01.6]} 37. Rxa7 {[%clk 0:00:06.4]}
37... Nd3+ {[%clk 0:00:02.2]} 38. Kd2 {[%clk 0:00:06.3]} 38... Nf4 {[%clk
0:00:02.5]} 39. Rxh7 {[%clk 0:00:06.3]} 39... Rd8+ {[%clk 0:00:01.9]} 40. Kc1
{[%clk 0:00:06.3]} 40... Nd5 {[%clk 0:00:02.2]} 41. Rh4 {[%clk 0:00:06]} 41...
Ne3 {[%clk 0:00:01.9]} 42. Rb4 {[%clk 0:00:05.6]} 42... Rc8 {[%clk 0:00:01.9]}
43. Bd1 {[%clk 0:00:03.1]} 43... Ke5 {[%clk 0:00:02.3]} 44. Rxb6 {[%clk
0:00:02.9]} 44... Nxg2 {[%clk 0:00:02.5]} 45. c4 {[%clk 0:00:02.5]} 45... Ne3
{[%clk 0:00:02.6]} 46. Bc2 {[%clk 0:00:02.8]} 46... f4 {[%clk 0:00:02.9]} 47.
Rb5+ {[%clk 0:00:03.4]} 47... Kd4 {[%clk 0:00:02.8]} 48. Kd2 {[%clk 0:00:04.3]}
48... Ng4 {[%clk 0:00:02.2]} 49. Rf5 {[%clk 0:00:03.9]} 1-0